[Event "CCT Chessable Masters Playoffs 2025"]
[Site "Online"]
[Date "2025.02.19"]
[Round "52"]
[White "Esipenko, Andrey"]
[Black "Caruana, Fabiano"]
[Result "1-0"]
[Annotator "TA"]
[ECO "E71"]
[WhiteElo "2695"]
[BlackElo "2803"]
[PlyCount "79"]
[EventDate "2025.02.13"]
[EventType "k.o."]
[EventCountry "NET"]
[SourceTitle "playchess.com"]
[Source "ChessBase"]
[SourceQuality "1"]
[TimeControl "600"]

{[%evp 10,79,39,25,46,33,31,20,18,30,42,31,61,58,68,62,99,56,110,110,110,28,51,72,62,16,18,22,27,27,89,91,95,83,182,126,138,144,145,135,192,201,207,162,182,182,249,238,279,244,287,285,305,307,304,292,400,394,489,465,487,282,286,272,1097,1092,1092,1061,834,258,1938,389]} 1. d4 {[%emt 0:00:01]} Nf6 {[%emt 0:00:03]} 2. c4 {[%emt 0:00:00]} g6 {[%emt 0:00:06]} 3. Nc3 {[%emt 0:00:02]} Bg7 {[%emt 0:00:00]} 4. e4 {[%emt 0:00:01]} d6 {[%emt 0:00:01]} 5. h3 {[%emt 0:00:02]} O-O {[%emt 0:00:02]} 6. Be3 {[%emt 0:00:01]} Nc6 {[%emt 0:00:02] E71: King's Indian: 4 e4 d6 5 h3.} 7. Qd2 {[%emt 0:00:06]} e5 {[%emt 0:00:19] [#]} 8. d5 {[%emt 0:00:02]} Nd4 {[%emt 0:00:00] The position is equal.} 9. Nge2 {[%emt 0:00:02]} c5 {[%emt 0:00:07]} 10. dxc6 {[%emt 0:00:01]} bxc6 {[%emt 0:00:02]} 11. Nxd4 {[%emt 0:00:10]} exd4 {[%emt 0:00:01]} 12. Bxd4 {[%emt 0:00:01]} Re8 {[%emt 0:00:10]} 13. Bd3 $146 {[%emt 0:01:34]} ({Predecessor:} 13. O-O-O Be6 14. Bd3 c5 15. Be3 Rb8 16. Qc2 Nd7 17. f4 Qa5 18. Bd2 Nb6 19. b3 {½-½ Santos Latasa,J (2608)-Mamedov,R (2654) Europe Echecs Blitz May op 2021 (6)}) 13... c5 {[%emt 0:01:07]} (13... d5 $14) 14. Be3 $16 {[%emt 0:00:13]} Bb7 {[%emt 0:00:01][%cal Rb7e4]} 15. O-O {[%emt 0:00:31]} ({Better is} 15. f3 $16) 15... Nxe4 {[%emt 0:00:32]} 16. Bxe4 {[%emt 0:00:02]} Bxe4 {[%emt 0:00:00]} 17. Nxe4 {[%emt 0:00:01]} (17. Rad1 $14 {feels stronger.}) 17... Rxe4 $11 {[%emt 0:00:00]} 18. Rad1 {[%emt 0:00:01][%cal Ba1d1,Bd1d7,Bd7a7][%mdl 32]} (18. Rac1 {simplifies} Qe7 19. Rcd1 Re8 20. Qxd6 Qxd6 21. Rxd6 Bxb2 22. Bxc5 a5 23. Ra6) 18... Qb6 {[%emt 0:00:40]} 19. Qxd6 {[%emt 0:00:53]} Qxb2 {[%emt 0:00:02]} (19... Qxd6 $11 20. Rxd6 Rxc4) 20. Qc6 {[%emt 0:00:34]} (20. Bxc5 $6 Qxa2 21. Qc6 Rae8 $11) 20... Ree8 {[%emt 0:00:04] [#]} 21. Rd7 $1 {[%emt 0:00:02][%cal Od7f7]} a5 {[%emt 0:00:43]} (21... Qe5 $16) 22. Bxc5 {[%emt 0:00:20]} (22. Rxf7 $18 {Strongly threatening Qd5.} Qe5 (22... Kxf7 $2 23. Qd5+ Re6 24. Qxa8 $18) 23. Rb7) 22... Rac8 {[%emt 0:00:21]} (22... Qxa2 $2 23. Qd5 Rf8 24. Re1 $18 (24. Bxf8 Rxf8 25. g3 a4 $18)) 23. Qd5 {[%emt 0:00:13]} Qf6 {[%emt 0:00:01] Threatens to win with ...Re5.} 24. Be3 {[%emt 0:00:07] White is more active.} a4 {[%emt 0:00:11]} (24... Qe6 $16 25. c5 Qxd5 26. Rxd5 h5) 25. c5 $18 {[%emt 0:00:08]} Bf8 {[%emt 0:00:10]} 26. Ra7 {[%emt 0:00:27]} Re5 {[%emt 0:00:29]} 27. Qd7 {[%emt 0:00:02]} Ree8 {[%emt 0:00:08]} (27... Qe6 {is a better defense.}) 28. Qxa4 {[%emt 0:00:09]} Red8 {[%emt 0:00:10]} 29. Qc4 {[%emt 0:00:05]} Qf5 {[%emt 0:00:09][%cal Rf8c5]} 30. Rc1 {[%emt 0:00:14]} Rc6 {[%emt 0:00:11]} 31. a4 {[%emt 0:00:14]} Rdc8 {[%emt 0:00:06][%cal Rf8c5]} 32. Ra5 {[%emt 0:00:03]} Bd6 {[%emt 0:00:11]} 33. Ra6 {[%emt 0:00:55]} Rxa6 {[%emt 0:01:26]} 34. Qxa6 {[%emt 0:00:04]} Bc7 {[%emt 0:00:00]} 35. Rd1 {[%emt 0:00:27]} (35. Qb7 $142) 35... Rb8 {[%emt 0:00:03]} 36. Qc6 {[%emt 0:00:07]} Rb1 $2 {[%emt 0:00:10]} (36... Qd3 37. Rc1 (37. Rxd3 $2 {leads to mate.} Rb1+) (37. Qxc7 Qxd1+ 38. Kh2 Qd8 $16) 37... Be5) 37. Qe8+ {[%emt 0:00:07]} Kg7 {[%emt 0:00:00]} 38. Bd4+ {[%emt 0:00:04]} f6 {[%emt 0:00:11]} 39. Qe7+ $2 {[%emt 0:00:11]} (39. Bxf6+ Kxf6 40. Qf8+ Ke6 41. Qc8+ (41. Qxf5+ gxf5 42. Rxb1 Kd5 $18) 41... Ke7 42. Qxc7+ Kf8 43. Rxb1 (43. Qd6+ Kf7 $18) 43... Qxb1+ 44. Kh2) 39... Kh6 $2 {[%emt 0:00:13]} (39... Kg8 40. Qe8+ Kg7 41. Bxf6+ Kxf6 42. Qf8+ Ke6 43. Qxf5+ gxf5 44. Rxb1 Kd7) 40. Be3+ $2 {[%emt 0:00:05] Weighted Error Value: White=0.42/Black=0.61  Mistake:       	White=4     	Black=6      Inaccurate:     	White=1     	Black=3      OK:         	White=14    	Black=8      Best:        	White=4     	---        Strong:       	White=1     	---} (40. Qf8+ Kh5 41. g4+ Kg5 42. Bxf6+ (42. gxf5 Rxd1+ 43. Kg2 Rxd4 $18) 42... Qxf6 43. h4+ (43. Qxf6+ Kxf6 44. Rxb1 Ke6 $18) 43... Kxg4 44. Qxf6 Rxd1+ 45. Kg2) 1-0

[Event "CCT Chessable Masters Playoffs 2025"]
[Site "Online"]
[Date "2025.02.19"]
[Round "52"]
[White "Artemiev, Vladislav"]
[Black "Nepomniachtchi, Ian"]
[Result "1-0"]
[Annotator "TA"]
[ECO "A26"]
[WhiteElo "2691"]
[BlackElo "2754"]
[PlyCount "137"]
[EventDate "2025.02.13"]
[EventType "k.o."]
[EventCountry "NET"]
[SourceTitle "playchess.com"]
[Source "ChessBase"]
[SourceQuality "1"]
[TimeControl "600"]

{[%evp 15,137,-6,0,-4,0,0,10,0,24,-7,31,3,26,40,28,23,35,37,36,23,26,36,41,38,41,37,34,34,43,43,66,60,245,239,259,255,277,289,451,451,435,433,622,625,689,656,647,494,512,509,495,491,589,586,667,660,706,697,676,668,1096,999,1147,1116,1240,1242,1260,1087,1984,1978,1904,1577,3232,2810,2765,1843,5181,4936,6123,5197,6137,6130,29976,29977,29978,29979,29983,29981,29981,29982,29980,29979,29983,29984,29990,29987,29991,29988,29986,29982,29987,29987,29987,29988,29988,29987,29988,29987,29987,29988,29988,29989,29989,29990,29990,29991,29992,29993,29994,29995,29997,29997,29998,29998]} 1. c4 {[%emt 0:00:05]} Nf6 {[%emt 0:00:06]} 2. Nc3 {[%emt 0:00:01]} e5 {[%emt 0:00:01]} 3. Nf3 {[%emt 0:00:01]} Nc6 {[%emt 0:00:01]} 4. a3 {[%emt 0:00:03]} g6 {[%emt 0:00:09]} 5. g3 {[%emt 0:00:03]} Bg7 {[%emt 0:00:02]} 6. Bg2 {[%emt 0:00:01]} O-O {[%emt 0:00:01]} 7. O-O {[%emt 0:00:01]} a5 {[%emt 0:00:08]} 8. d3 {[%emt 0:00:06]} d6 {[%emt 0:00:02]} 9. b3 $5 {[%emt 0:00:02][%mdl 4] A promising side line. A26: English Opening vs King's Indian with ...Nc6 and d3.} Re8 {[%emt 0:00:31]} 10. Bb2 {[%emt 0:00:02]} h6 {[%emt 0:00:42]} 11. Nd2 {[%emt 0:00:01] The position is equal.} Be6 {[%emt 0:00:03]} 12. Rc1 {[%emt 0:00:03]} Qd7 $146 {[%emt 0:00:01]} (12... Nd7 13. Nd5 Nc5 14. Bc3 Nd4 15. b4 axb4 16. axb4 Na4 17. Ba1 c6 18. Nc3 Nxc3 19. Bxc3 {1-0 Flores,D (2568)-Sosa,T (2390) ARG-ch 90th Buenos Aires 2015 (9)}) 13. Re1 {[%emt 0:00:56]} Kh7 {[%emt 0:00:04]} 14. Nd5 {[%emt 0:00:09]} Rab8 {[%emt 0:00:02]} 15. e3 {[%emt 0:00:57]} Ne7 {[%emt 0:00:04]} 16. Nxf6+ {[%emt 0:00:08]} Bxf6 {[%emt 0:00:00]} 17. d4 {[%emt 0:00:01]} Bg7 {[%emt 0:00:34]} 18. dxe5 {[%emt 0:00:50]} dxe5 {[%emt 0:00:05]} 19. Ne4 {[%emt 0:00:05][%cal Bd2e4,Be4c3,Bc3b5,Bb5c7,Bc7a6][%mdl 32]} Qxd1 {[%emt 0:00:10]} 20. Rexd1 {[%emt 0:00:02]} b6 {[%emt 0:00:00] Inhibits Nc5.} 21. Nc3 {[%emt 0:00:13]} Red8 {[%emt 0:00:10]} 22. a4 {[%emt 0:01:46]} f5 {[%emt 0:00:20]} 23. Nb5 {[%emt 0:00:19]} c5 {[%emt 0:01:08] A mistake that costs the game.} (23... c6 $1 $14) 24. Nc7 $18 {[%emt 0:00:10]} Bf7 {[%emt 0:00:02] [#]} 25. Na6 $1 {[%emt 0:00:00]} Rxd1+ {[%emt 0:00:43]} 26. Rxd1 {[%emt 0:00:02]} Re8 {[%emt 0:00:01]} (26... Rf8 $142 27. Rd7 Ng8) 27. Nc7 {[%emt 0:00:38]} Rf8 {[%emt 0:00:14]} 28. Rd7 {[%emt 0:00:07]} Nc8 {[%emt 0:00:20]} (28... Ng8 $142 29. Bxe5 Bxe5) 29. Bd5 {[%emt 0:00:08] Black is weak on the light squares} Kg8 {[%emt 0:00:14]} 30. f4 {[%emt 0:00:36]} Bxd5 {[%emt 0:00:06]} 31. cxd5 {[%emt 0:00:04]} Rf7 {[%emt 0:00:02]} 32. Rd8+ {[%emt 0:00:33]} Rf8 {[%emt 0:00:01]} 33. Rxf8+ {[%emt 0:00:03]} Kxf8 {[%emt 0:00:07][%mdl 4096] Endgame KBN-KBN} 34. Ne6+ {[%emt 0:00:10]} Kf7 {[%emt 0:00:01]} 35. Nxg7 {[%emt 0:00:01]} Kxg7 {[%emt 0:00:00]} 36. fxe5 {[%emt 0:00:05] KB-KN. White is a pawn up.} Kf7 {[%emt 0:00:11]} 37. Kf2 {[%emt 0:00:08]} b5 {[%emt 0:00:30]} 38. axb5 {[%emt 0:00:01]} Nb6 {[%emt 0:00:00]} 39. Ba3 {[%emt 0:00:04]} Nxd5 {[%emt 0:00:12]} 40. e4 {[%emt 0:00:14]} (40. Bxc5 Nc3 $16) 40... fxe4 {[%emt 0:00:37]} 41. Bxc5 {[%emt 0:00:02] aiming for b6.} Ke6 {[%emt 0:00:00]} 42. b6 {[%emt 0:00:03]} Kd7 {[%emt 0:00:01] [#]} 43. e6+ $1 {[%emt 0:00:04][%mdl 512]} Kc6 {[%emt 0:00:00]} 44. e7 {[%emt 0:00:02]} Nf6 {[%emt 0:00:04]} 45. Bd4 {[%emt 0:00:02]} Ne8 {[%emt 0:00:05]} 46. Ke3 {[%emt 0:00:00]} Nd6 {[%emt 0:00:01] [#]} 47. Bc5 $1 {[%emt 0:00:08]} Ne8 {[%emt 0:00:14] [#]} (47... Kxc5 48. b7) 48. Kxe4 $1 {[%emt 0:00:00][%cal Oe4e5] Threatening mate with Ke5!.} Kd7 {[%emt 0:00:03]} (48... Nf6+ 49. Ke5) 49. Ke5 {[%emt 0:00:02] White mates.} Kc6 {[%emt 0:00:01]} 50. Bd4 {[%emt 0:00:07]} Kd7 {[%emt 0:00:02]} 51. Kd5 {[%emt 0:00:00]} Nd6 {[%emt 0:00:02] [#]} 52. e8=Q+ $1 {[%emt 0:00:05]} Nxe8 {[%emt 0:00:00]} 53. Be5 {[%emt 0:00:00]} a4 {[%emt 0:00:05]} 54. bxa4 {[%emt 0:00:01]} g5 {[%emt 0:00:01][%cal Bg6g5,Bg5g4][%mdl 32]} 55. b7 {[%emt 0:00:01]} Nf6+ {[%emt 0:00:00]} 56. Bxf6 {[%emt 0:00:01] KB-KPP} Kc7 {[%emt 0:00:00]} 57. Bg7 {[%emt 0:00:01]} Kxb7 {[%emt 0:00:00]} 58. Bxh6 {[%emt 0:00:00] KB-KP} g4 {[%emt 0:00:01]} 59. Bf4 {[%emt 0:00:00]} Ka6 {[%emt 0:00:00]} 60. Ke4 {[%emt 0:00:00]} Ka5 {[%emt 0:00:00]} 61. Kf5 {[%emt 0:00:01]} Kxa4 {[%emt 0:00:01]} 62. Kxg4 {[%emt 0:00:00]} Kb5 {[%emt 0:00:00]} 63. h4 {[%emt 0:00:00]} Kc6 {[%emt 0:00:00]} 64. h5 {[%emt 0:00:00]} Kd7 {[%emt 0:00:00]} 65. h6 {[%emt 0:00:00]} Ke8 {[%emt 0:00:00]} 66. h7 {[%emt 0:00:00]} Kf7 {[%emt 0:00:00]} 67. h8=Q {[%emt 0:00:01]} Kg6 {[%emt 0:00:01]} 68. Qe5 {[%emt 0:00:02]} Kf7 {[%emt 0:00:02]} 69. Kf5 {[%emt 0:00:00] Weighted Error Value: White=0.05 (flawless) /Black=0.88  Loses game:     	---       	Black=1      Mistake:       	---       	Black=2      Inaccurate:     	White=2     	Black=1      OK:         	White=12    	Black=3      Best:        	White=3     	Black=1      Strong:       	White=1     	---} 1-0

[Event "CCT Chessable Masters Playoffs 2025"]
[Site "Online"]
[Date "2025.02.19"]
[Round "53"]
[White "Nepomniachtchi, Ian"]
[Black "Esipenko, Andrey"]
[Result "1/2-1/2"]
[Annotator "TA"]
[ECO "C42"]
[WhiteElo "2754"]
[BlackElo "2695"]
[PlyCount "80"]
[EventDate "2025.02.13"]
[EventType "k.o."]
[EventCountry "NET"]
[SourceTitle "playchess.com"]
[Source "ChessBase"]
[SourceQuality "1"]
[TimeControl "600"]

{[%evp 13,80,10,10,0,3,0,8,7,26,38,37,32,37,33,35,22,30,-2,15,19,20,0,0,0,0,0,0,-7,0,0,3,4,15,-14,3,10,0,-6,-5,-5,-5,-7,0,-4,-4,-4,0,0,-2,0,0,-8,-8,-8,-6,-31,-4,-4,-6,-5,-5,-12,0,0,0,0,0,-7,-15]} 1. e4 {[%emt 0:00:00]} e5 {[%emt 0:00:01]} 2. Nf3 {[%emt 0:00:02]} Nf6 {[%emt 0:00:00]} 3. Nxe5 {[%emt 0:00:01]} d6 {[%emt 0:00:01]} 4. Nf3 {[%emt 0:00:00]} Nxe4 {[%emt 0:00:01]} 5. Nc3 {[%emt 0:00:00]} Nxc3 {[%emt 0:00:01]} 6. dxc3 {[%emt 0:00:00]} Be7 {[%emt 0:00:02]} 7. Be3 {[%emt 0:00:01]} O-O {[%emt 0:00:01]} 8. Qd2 {[%emt 0:00:00] C42: Petroff Defence: 3 Nxe5 and unusual White 3rd moves.} Nd7 {[%emt 0:00:01] Not much happening anymore} 9. O-O-O {[%emt 0:00:01]} Nf6 {[%emt 0:00:02]} 10. Bd3 {[%emt 0:00:00]} c5 {[%emt 0:00:01][%cal Ob7b5]} 11. Rhe1 {[%emt 0:00:03]} Be6 {[%emt 0:00:01]} 12. Kb1 {[%emt 0:00:09]} Qa5 {[%emt 0:00:02]} 13. c4 {[%emt 0:00:05]} Qxd2 {[%emt 0:00:01]} 14. Bxd2 {[%emt 0:00:02]} h6 {[%emt 0:00:15] Inhibits Ng5.} 15. Nh4 {[%emt 0:00:14][%cal Bf3h4,Bh4f5,Bf5e3,Be3c4,Bc4e5][%mdl 32] now supersedes 15.h3.} Rfe8 {[%emt 0:00:06]} 16. Nf5 $146 {[%emt 0:00:02]} ({Predecessor:} 16. Ng6 Ng4 17. Nxe7+ Rxe7 18. Re2 Ne5 19. Bc3 f6 20. b3 Nxd3 21. Rxd3 Rd8 22. Rde3 {½-½ Zhao,J (2542)-Zeng,C (2590) CHN-ch Xinghua 2024 (2)}) 16... Bf8 {[%emt 0:00:01][%cal Be7f8,Bf8d6,Bd6e5][%mdl 32]} 17. f3 {[%emt 0:00:12] Dodges Ng4} b5 {[%emt 0:00:30]} 18. Ne3 {[%emt 0:00:23]} (18. cxb5 c4 19. Bxc4 (19. Rxe6 $2 fxe6 20. Bxc4 d5 $19) 19... Bxf5 $17 (19... Bxc4 $2 20. a4 $19)) 18... bxc4 {[%emt 0:00:01]} 19. Nxc4 {[%emt 0:00:53]} d5 {[%emt 0:00:27]} 20. Ne5 {[%emt 0:00:00]} Rab8 {[%emt 0:00:31]} 21. c4 {[%emt 0:00:55]} Bd6 {[%emt 0:01:45]} 22. cxd5 {[%emt 0:00:44]} Nxd5 {[%emt 0:00:05]} 23. a3 {[%emt 0:00:46]} Bf5 {[%emt 0:00:48]} 24. Bxf5 {[%emt 0:00:26]} Bxe5 {[%emt 0:00:02]} ({But not} 24... Rxe5 $6 25. Be4 f5 26. Bxd5+ Rxd5 27. Bxh6 Rxd1+ 28. Rxd1 $16) 25. f4 {[%emt 0:00:40]} Bd4 {[%emt 0:00:33]} (25... Rxb2+ $2 {loses.} 26. Kc1 $18) (25... Nxf4 $2 26. Rxe5 Rxe5 27. Bxf4 $18) 26. Rxe8+ {[%emt 0:00:13]} Rxe8 {[%emt 0:00:00]} 27. Kc2 {[%emt 0:00:53]} Ne3+ {[%emt 0:01:16]} (27... Re2 28. Kd3 Rf2 (28... Rxg2 29. Be4 $16) 29. Be4 Nxf4+ 30. Kc4 $15) 28. Bxe3 {[%emt 0:00:02]} Rxe3 $11 {[%emt 0:00:00][%mdl 4096] Endgame KRB-KRB} 29. Bd3 {[%emt 0:00:00]} g6 {[%emt 0:00:03]} 30. Rd2 {[%emt 0:00:10]} Kf8 {[%emt 0:00:20]} 31. Kb3 {[%emt 0:00:06]} Re7 {[%emt 0:00:16]} 32. f5 {[%emt 0:00:04]} Rb7+ {[%emt 0:00:03]} 33. Ka2 {[%emt 0:00:00]} g5 {[%emt 0:00:06]} 34. Bc4 {[%emt 0:00:05]} Kg7 {[%emt 0:00:04]} 35. g4 {[%emt 0:00:17] The position is equal.} a5 {[%emt 0:00:18]} 36. Re2 {[%emt 0:00:01]} Kf6 {[%emt 0:00:01]} 37. Bd5 {[%emt 0:00:04] Opposite bishops and equal position} Re7 {[%emt 0:00:12]} 38. Rxe7 {[%emt 0:00:01]} Kxe7 {[%emt 0:00:01]} 39. Kb3 {[%emt 0:00:00]} f6 {[%emt 0:00:02]} 40. h3 {[%emt 0:00:06]} Kd6 {[%emt 0:00:01] Weighted Error Value: White=0.05 (flawless) /Black=0.04 (flawless)   Inaccurate:     	White=3     	Black=1      OK:         	White=14    	Black=16     Best:        	White=3     	---} 1/2-1/2